[Event "*** Titled Tuesday Blitz"]
[Site "Chess.com"]
[Date "2020.05.05"]
[Round "2"]
[White "Winehouse83"]
[Black "JoachimMouhamad"]
[Result "0-1"]
[WhiteElo "2525"]
[BlackElo "2301"]
[TimeControl "180+1"]
[EndTime "10:19:15 PDT"]
[Termination "JoachimMouhamad won on time"]

1. d4 {[%clk 0:03:00.9]} 1... Nf6 {[%clk 0:02:58.7]} 2. c4 {[%clk 0:03:01.4]}
2... g6 {[%clk 0:02:53.9]} 3. Nc3 {[%clk 0:03:01.5]} 3... d5 {[%clk 0:02:52.2]}
4. cxd5 {[%clk 0:02:54.5]} 4... Nxd5 {[%clk 0:02:51.5]} 5. e4 {[%clk 0:02:54.6]}
5... Nxc3 {[%clk 0:02:50.7]} 6. bxc3 {[%clk 0:02:55.5]} 6... Bg7 {[%clk
0:02:49.9]} 7. Bc4 {[%clk 0:02:55.9]} 7... O-O {[%clk 0:02:49.3]} 8. Ne2 {[%clk
0:02:56]} 8... c5 {[%clk 0:02:41]} 9. Be3 {[%clk 0:02:56.2]} 9... b6 {[%clk
0:02:09.6]} 10. O-O {[%clk 0:02:41.7]} 10... Bb7 {[%clk 0:02:05.2]} 11. f3
{[%clk 0:02:40.1]} 11... e6 {[%clk 0:01:58.8]} 12. dxc5 {[%clk 0:02:33.8]} 12...
Qc7 {[%clk 0:01:57.6]} 13. Qb3 {[%clk 0:01:59.6]} 13... Nd7 {[%clk 0:01:36.1]}
14. cxb6 {[%clk 0:01:55]} 14... axb6 {[%clk 0:01:32.6]} 15. Rfd1 {[%clk
0:01:52]} 15... Nc5 {[%clk 0:01:29.8]} 16. Qb1 {[%clk 0:01:34.2]} 16... Rfd8
{[%clk 0:01:24.8]} 17. Bb5 {[%clk 0:01:25.3]} 17... Bc6 {[%clk 0:01:10.8]} 18.
Nd4 {[%clk 0:01:18.2]} 18... Bxb5 {[%clk 0:01:06.8]} 19. Nxb5 {[%clk 0:01:12.3]}
19... Qc6 {[%clk 0:01:04.9]} 20. Qb2 {[%clk 0:00:58.3]} 20... Na4 {[%clk
0:01:02.1]} 21. Qb3 {[%clk 0:00:58.5]} 21... Nc5 {[%clk 0:00:54]} 22. Qc4 {[%clk
0:00:48.4]} 22... Rxd1+ {[%clk 0:00:35.9]} 23. Rxd1 {[%clk 0:00:49.3]} 23... h5
{[%clk 0:00:27.8]} 24. Rd6 {[%clk 0:00:36.1]} 24... Qc8 {[%clk 0:00:25.1]} 25.
Rxb6 {[%clk 0:00:31.4]} 25... Na4 {[%clk 0:00:21.2]} 26. Rc6 {[%clk 0:00:21.9]}
26... Qd8 {[%clk 0:00:19]} 27. Rd6 {[%clk 0:00:19]} 27... Qa5 {[%clk 0:00:16.8]}
28. Nc7 {[%clk 0:00:12.7]} 28... Rc8 {[%clk 0:00:14.4]} 29. Rc6 {[%clk 0:00:13]}
29... Rd8 {[%clk 0:00:13.8]} 30. h3 {[%clk 0:00:10.6]} 30... Nb2 {[%clk
0:00:13.7]} 31. Qb5 {[%clk 0:00:08.3]} 31... Qxa2 {[%clk 0:00:12.5]} 32. Qe2
{[%clk 0:00:06.9]} 32... Qb1+ {[%clk 0:00:11.7]} 33. Kh2 {[%clk 0:00:06.8]}
33... Nd1 {[%clk 0:00:12]} 34. Bg1 {[%clk 0:00:04.9]} 34... Be5+ {[%clk
0:00:11.7]} 35. g3 {[%clk 0:00:03.9]} 35... Qc1 {[%clk 0:00:11.4]} 36. Kh1
{[%clk 0:00:02.2]} 36... Rd2 {[%clk 0:00:10.4]} 37. Qe1 {[%clk 0:00:02.2]} 37...
Qc2 {[%clk 0:00:09.5]} 38. Rc5 {[%clk 0:00:02.1]} 38... Bd6 {[%clk 0:00:08.6]}
39. Rc6 {[%clk 0:00:02.6]} 39... Be5 {[%clk 0:00:08]} 40. Rc5 {[%clk 0:00:02.7]}
40... Bd6 {[%clk 0:00:05.3]} 41. Rc6 {[%clk 0:00:03.2]} 41... Nf2+ {[%clk
0:00:05]} 42. Bxf2 {[%clk 0:00:02.9]} 42... Rxf2 {[%clk 0:00:04.2]} 43. Qg1
{[%clk 0:00:03.1]} 43... Ba3 {[%clk 0:00:03]} 44. Nxe6 {[%clk 0:00:04]} 44...
fxe6 {[%clk 0:00:02.5]} 45. Rc8+ {[%clk 0:00:04.9]} 45... Kg7 {[%clk 0:00:03.4]}
46. Rg8+ {[%clk 0:00:05.8]} 46... Kh6 {[%clk 0:00:04.3]} 47. Rh8+ {[%clk
0:00:04.4]} 47... Kg7 {[%clk 0:00:05.2]} 48. Rd8 {[%clk 0:00:05.2]} 48... Rd2
{[%clk 0:00:06.1]} 49. Rc8 {[%clk 0:00:05.1]} 49... Rd1 {[%clk 0:00:05.9]} 50.
Rc7+ {[%clk 0:00:04.4]} 50... Kh6 {[%clk 0:00:05.2]} 51. Rg7 {[%clk 0:00:04.4]}
51... Rxg1+ {[%clk 0:00:06.1]} 0-1

[Event "*** Titled Tuesday Blitz"]
[Site "Chess.com"]
[Date "2020.05.05"]
[Round "2"]
[White "Lupul_Cenusiu"]
[Black "Gloomy_Wanderer"]
[Result "0-1"]
[WhiteElo "2524"]
[BlackElo "2788"]
[TimeControl "180+1"]
[EndTime "10:19:18 PDT"]
[Termination "Gloomy_Wanderer won on time"]

1. d4 {[%clk 0:03:00.9]} 1... Nf6 {[%clk 0:02:59]} 2. c4 {[%clk 0:03:00.1]} 2...
e6 {[%clk 0:02:59.4]} 3. Nc3 {[%clk 0:02:59.7]} 3... Bb4 {[%clk 0:02:59.1]} 4.
Bd2 {[%clk 0:02:59.4]} 4... O-O {[%clk 0:02:55.6]} 5. Nf3 {[%clk 0:02:58.7]}
5... b6 {[%clk 0:02:55.9]} 6. g3 {[%clk 0:02:57]} 6... Bb7 {[%clk 0:02:55.2]} 7.
Bg2 {[%clk 0:02:57.1]} 7... Bxc3 {[%clk 0:02:55.3]} 8. Bxc3 {[%clk 0:02:56.4]}
8... Ne4 {[%clk 0:02:56.2]} 9. Rc1 {[%clk 0:02:55.7]} 9... d6 {[%clk 0:02:54.8]}
10. O-O {[%clk 0:02:54.3]} 10... Nd7 {[%clk 0:02:54.1]} 11. Qc2 {[%clk
0:02:53.6]} 11... f5 {[%clk 0:02:43.6]} 12. b3 {[%clk 0:02:46.3]} 12... Nxc3
{[%clk 0:02:42.1]} 13. Qxc3 {[%clk 0:02:45.9]} 13... Nf6 {[%clk 0:02:43]} 14.
Rcd1 {[%clk 0:02:42.8]} 14... Qe7 {[%clk 0:02:34.9]} 15. Qb2 {[%clk 0:02:30.7]}
15... Rae8 {[%clk 0:02:31.4]} 16. a4 {[%clk 0:02:27.9]} 16... a5 {[%clk
0:02:31.2]} 17. Qa3 {[%clk 0:02:23.7]} 17... e5 {[%clk 0:02:27]} 18. dxe5 {[%clk
0:02:21.7]} 18... dxe5 {[%clk 0:02:27.3]} 19. Qxe7 {[%clk 0:02:14.3]} 19... Rxe7
{[%clk 0:02:28.2]} 20. Nh4 {[%clk 0:02:12.8]} 20... Bxg2 {[%clk 0:02:12.3]} 21.
Kxg2 {[%clk 0:02:12.2]} 21... Ne4 {[%clk 0:02:07.3]} 22. Rd5 {[%clk 0:02:00.9]}
22... Nc5 {[%clk 0:02:02.6]} 23. Nf3 {[%clk 0:01:53.8]} 23... Rfe8 {[%clk
0:01:53.7]} 24. Rb1 {[%clk 0:01:51.7]} 24... Kf7 {[%clk 0:01:41.1]} 25. h4
{[%clk 0:01:43.9]} 25... g6 {[%clk 0:01:34.6]} 26. Rb2 {[%clk 0:01:29.2]} 26...
Kf6 {[%clk 0:01:31.8]} 27. Ng5 {[%clk 0:01:06.7]} 27... h6 {[%clk 0:01:25.2]}
28. Nf3 {[%clk 0:01:05.9]} 28... g5 {[%clk 0:01:02.1]} 29. hxg5+ {[%clk
0:00:51.4]} 29... hxg5 {[%clk 0:01:03]} 30. Rd1 {[%clk 0:00:50.4]} 30... e4
{[%clk 0:00:58.1]} 31. Nh2 {[%clk 0:00:42.2]} 31... Rd7 {[%clk 0:00:54.4]} 32.
Rxd7 {[%clk 0:00:38.9]} 32... Nxd7 {[%clk 0:00:54.2]} 33. b4 {[%clk 0:00:39.1]}
33... axb4 {[%clk 0:00:53.2]} 34. Rxb4 {[%clk 0:00:39]} 34... Ra8 {[%clk
0:00:52.9]} 35. f3 {[%clk 0:00:35.9]} 35... exf3+ {[%clk 0:00:45.7]} 36. Nxf3
{[%clk 0:00:31.2]} 36... Nc5 {[%clk 0:00:45.7]} 37. Nd4 {[%clk 0:00:25]} 37...
Rxa4 {[%clk 0:00:38.6]} 38. Rxa4 {[%clk 0:00:24.3]} 38... Nxa4 {[%clk
0:00:39.5]} 39. Nb5 {[%clk 0:00:24.3]} 39... c6 {[%clk 0:00:33.9]} 40. Nd4
{[%clk 0:00:23.7]} 40... c5 {[%clk 0:00:31]} 41. Nb5 {[%clk 0:00:18]} 41... Nb2
{[%clk 0:00:29.7]} 42. Na3 {[%clk 0:00:17]} 42... Ke5 {[%clk 0:00:28]} 43. Kf3
{[%clk 0:00:14.4]} 43... Kd4 {[%clk 0:00:22.8]} 44. Nb5+ {[%clk 0:00:14.1]}
44... Kxc4 {[%clk 0:00:21.3]} 45. Nd6+ {[%clk 0:00:14.1]} 45... Kd5 {[%clk
0:00:21.4]} 46. Nxf5 {[%clk 0:00:15]} 46... Ke5 {[%clk 0:00:17.3]} 47. Ne3
{[%clk 0:00:13.3]} 47... b5 {[%clk 0:00:16.3]} 48. Nc2 {[%clk 0:00:09.6]} 48...
b4 {[%clk 0:00:15.3]} 49. Ke3 {[%clk 0:00:09.1]} 49... Nc4+ {[%clk 0:00:15.1]}
50. Kd3 {[%clk 0:00:09]} 50... Nd6 {[%clk 0:00:15.5]} 51. Ne3 {[%clk 0:00:08.2]}
51... Ne4 {[%clk 0:00:09.9]} 52. g4 {[%clk 0:00:06.2]} 52... Nd6 {[%clk
0:00:09.1]} 53. Nc2 {[%clk 0:00:03.4]} 53... c4+ {[%clk 0:00:08.1]} 54. Ke3
{[%clk 0:00:01.9]} 54... b3 {[%clk 0:00:08.4]} 55. Na3 {[%clk 0:00:01.9]} 55...
Kd5 {[%clk 0:00:08.1]} 0-1

[Event "*** Titled Tuesday Blitz"]
[Site "Chess.com"]
[Date "2020.05.05"]
[Round "2"]
[White "ItsCheckM8Mate"]
[Black "MartinMatthiesen"]
[Result "0-1"]
[WhiteElo "2260"]
[BlackElo "2475"]
[TimeControl "180+1"]
[EndTime "10:19:18 PDT"]
[Termination "MartinMatthiesen won on time"]

1. e4 {[%clk 0:02:57.1]} 1... c5 {[%clk 0:02:59]} 2. Nf3 {[%clk 0:02:53.9]} 2...
d6 {[%clk 0:02:58.8]} 3. d4 {[%clk 0:02:53.3]} 3... cxd4 {[%clk 0:02:58.9]} 4.
Nxd4 {[%clk 0:02:54.2]} 4... Nf6 {[%clk 0:02:59.1]} 5. Nc3 {[%clk 0:02:53.9]}
5... a6 {[%clk 0:02:59.2]} 6. h3 {[%clk 0:02:53.8]} 6... e6 {[%clk 0:02:55.4]}
7. g4 {[%clk 0:02:53.1]} 7... Nc6 {[%clk 0:02:53.8]} 8. g5 {[%clk 0:02:50.6]}
8... Nd7 {[%clk 0:02:53.7]} 9. Be3 {[%clk 0:02:50.4]} 9... Qc7 {[%clk
0:02:44.8]} 10. Bg2 {[%clk 0:02:47.3]} 10... b5 {[%clk 0:02:43.9]} 11. O-O
{[%clk 0:02:41.7]} 11... Bb7 {[%clk 0:02:41.7]} 12. f4 {[%clk 0:02:41]} 12...
Nxd4 {[%clk 0:02:26.3]} 13. Qxd4 {[%clk 0:02:32.7]} 13... Rc8 {[%clk 0:02:12.2]}
14. f5 {[%clk 0:02:21.7]} 14... e5 {[%clk 0:01:33.8]} 15. Qd2 {[%clk 0:02:05.2]}
15... Nb6 {[%clk 0:01:01.1]} 16. Bxb6 {[%clk 0:01:38.6]} 16... Qxb6+ {[%clk
0:01:00.7]} 17. Kh2 {[%clk 0:01:39.1]} 17... Qd4 {[%clk 0:00:49.2]} 18. Rad1
{[%clk 0:01:16.5]} 18... Qxd2 {[%clk 0:00:48.6]} 19. Rxd2 {[%clk 0:01:16.7]}
19... g6 {[%clk 0:00:33.4]} 20. Rfd1 {[%clk 0:00:47.3]} 20... h6 {[%clk
0:00:30.6]} 21. gxh6 {[%clk 0:00:40.3]} 21... Rxh6 {[%clk 0:00:25.4]} 22. f6
{[%clk 0:00:34.5]} 22... Rh4 {[%clk 0:00:20.4]} 23. Kg3 {[%clk 0:00:33]} 23...
Rh5 {[%clk 0:00:18.6]} 24. Bf3 {[%clk 0:00:28.8]} 24... Rh6 {[%clk 0:00:17.8]}
25. Bg4 {[%clk 0:00:28.4]} 25... Rd8 {[%clk 0:00:18.3]} 26. Nd5 {[%clk
0:00:27.2]} 26... Bxd5 {[%clk 0:00:15.8]} 27. Rxd5 {[%clk 0:00:27]} 27... g5
{[%clk 0:00:15.8]} 28. Rf1 {[%clk 0:00:26.1]} 28... Rh8 {[%clk 0:00:14.6]} 29.
Rfd1 {[%clk 0:00:23.4]} 29... Rh6 {[%clk 0:00:14.5]} 30. Rf1 {[%clk 0:00:22.7]}
30... Rh4 {[%clk 0:00:14.5]} 31. c3 {[%clk 0:00:16.8]} 31... Rb8 {[%clk
0:00:14.6]} 32. Rfd1 {[%clk 0:00:12.6]} 32... Rb6 {[%clk 0:00:14.7]} 33. R1d2
{[%clk 0:00:10.4]} 33... Rh6 {[%clk 0:00:14.8]} 34. Rf2 {[%clk 0:00:09.6]} 34...
Kd8 {[%clk 0:00:15.1]} 35. a4 {[%clk 0:00:07.9]} 35... Kc7 {[%clk 0:00:15.2]}
36. axb5 {[%clk 0:00:06.9]} 36... Rxb5 {[%clk 0:00:14.8]} 37. Rxb5 {[%clk
0:00:06.4]} 37... axb5 {[%clk 0:00:15.7]} 38. Be2 {[%clk 0:00:06]} 38... Kb6
{[%clk 0:00:15.4]} 39. Kg4 {[%clk 0:00:05.9]} 39... Rg6 {[%clk 0:00:14.6]} 40.
Bf1 {[%clk 0:00:03.9]} 40... Bh6 {[%clk 0:00:13.5]} 41. Kf5 {[%clk 0:00:04.2]}
41... Bf8 {[%clk 0:00:13.4]} 42. Be2 {[%clk 0:00:04.3]} 42... Kc5 {[%clk
0:00:13.6]} 43. Bh5 {[%clk 0:00:04.4]} 43... Rh6 {[%clk 0:00:13.8]} 44. Kg4
{[%clk 0:00:04.6]} 44... Rh7 {[%clk 0:00:12.6]} 45. Kxg5 {[%clk 0:00:04.9]}
45... Bh6+ {[%clk 0:00:12.9]} 46. Kf5 {[%clk 0:00:05.2]} 46... Bf4 {[%clk
0:00:12.9]} 47. Bg4 {[%clk 0:00:04.7]} 47... Rh6 {[%clk 0:00:12.1]} 48. Re2
{[%clk 0:00:02.4]} 48... Kc4 {[%clk 0:00:11.9]} 49. b3+ {[%clk 0:00:02.2]} 49...
Kd3 {[%clk 0:00:11.7]} 50. c4 {[%clk 0:00:01.3]} 50... b4 {[%clk 0:00:10.2]} 51.
Rg2 {[%clk 0:00:01]} 51... Kc3 {[%clk 0:00:10.4]} 0-1

[Event "*** Titled Tuesday Blitz"]
[Site "Chess.com"]
[Date "2020.05.05"]
[Round "2"]
[White "Angel_Hranitel_37"]
[Black "Kaponov"]
[Result "1-0"]
[WhiteElo "2373"]
[BlackElo "2061"]
[TimeControl "180+1"]
[EndTime "10:19:18 PDT"]
[Termination "Angel_Hranitel_37 won on time"]

1. d4 {[%clk 0:03:00.9]} 1... Nf6 {[%clk 0:02:59.5]} 2. Nf3 {[%clk 0:03:00.8]}
2... e6 {[%clk 0:02:59.6]} 3. g3 {[%clk 0:03:00.7]} 3... d5 {[%clk 0:02:55.9]}
4. Bg2 {[%clk 0:03:01.1]} 4... Bd6 {[%clk 0:02:54.2]} 5. O-O {[%clk 0:02:59.9]}
5... O-O {[%clk 0:02:54.1]} 6. c4 {[%clk 0:03:00.3]} 6... dxc4 {[%clk
0:02:51.8]} 7. Qc2 {[%clk 0:02:59.8]} 7... Nbd7 {[%clk 0:02:50.9]} 8. Qxc4
{[%clk 0:02:59.1]} 8... c5 {[%clk 0:02:45.7]} 9. Nc3 {[%clk 0:02:37.2]} 9... a6
{[%clk 0:02:41.1]} 10. dxc5 {[%clk 0:02:27.5]} 10... Bxc5 {[%clk 0:02:39.4]} 11.
Qh4 {[%clk 0:02:26]} 11... Qa5 {[%clk 0:02:20.9]} 12. a3 {[%clk 0:02:11.7]}
12... Be7 {[%clk 0:02:19.5]} 13. b4 {[%clk 0:01:57.6]} 13... Qh5 {[%clk
0:02:05.9]} 14. Qxh5 {[%clk 0:01:42.9]} 14... Nxh5 {[%clk 0:02:06.2]} 15. Bb2
{[%clk 0:01:43.6]} 15... Bf6 {[%clk 0:01:56.9]} 16. e3 {[%clk 0:01:14.8]} 16...
g6 {[%clk 0:01:55.7]} 17. g4 {[%clk 0:01:03.7]} 17... Ng7 {[%clk 0:01:54.5]} 18.
g5 {[%clk 0:01:04.3]} 18... Be7 {[%clk 0:01:51.9]} 19. Ne4 {[%clk 0:01:03.8]}
19... Nf5 {[%clk 0:01:40.4]} 20. Rfd1 {[%clk 0:00:59.8]} 20... Rd8 {[%clk
0:01:35.2]} 21. Rd2 {[%clk 0:00:25.9]} 21... Nb6 {[%clk 0:01:27.5]} 22. Rxd8+
{[%clk 0:00:25.4]} 22... Bxd8 {[%clk 0:01:27.3]} 23. Rd1 {[%clk 0:00:26.2]}
23... Be7 {[%clk 0:01:25.9]} 24. Nf6+ {[%clk 0:00:23.6]} 24... Bxf6 {[%clk
0:01:20.6]} 25. Bxf6 {[%clk 0:00:23.8]} 25... Bd7 {[%clk 0:01:18]} 26. Bd4
{[%clk 0:00:23]} 26... Nxd4 {[%clk 0:01:15.6]} 27. Nxd4 {[%clk 0:00:22.6]} 27...
Rb8 {[%clk 0:01:09.3]} 28. Nb3 {[%clk 0:00:22.1]} 28... Ba4 {[%clk 0:01:05.4]}
29. Rd3 {[%clk 0:00:22.6]} 29... Bxb3 {[%clk 0:00:58.8]} 30. Rxb3 {[%clk
0:00:23.5]} 30... Nc4 {[%clk 0:00:55.7]} 31. Rc3 {[%clk 0:00:22.7]} 31... Nd6
{[%clk 0:00:47.8]} 32. Rc7 {[%clk 0:00:20.9]} 32... Kf8 {[%clk 0:00:39.4]} 33.
a4 {[%clk 0:00:20.5]} 33... Ke8 {[%clk 0:00:37.6]} 34. Rc5 {[%clk 0:00:15.9]}
34... Kd7 {[%clk 0:00:33.9]} 35. e4 {[%clk 0:00:15.8]} 35... b6 {[%clk
0:00:20.6]} 36. Rc3 {[%clk 0:00:12.7]} 36... Rc8 {[%clk 0:00:19.7]} 37. Rd3
{[%clk 0:00:12.8]} 37... Ke7 {[%clk 0:00:17.7]} 38. e5 {[%clk 0:00:11.8]} 38...
Nf5 {[%clk 0:00:17.3]} 39. Bf1 {[%clk 0:00:11.2]} 39... Rc4 {[%clk 0:00:12.6]}
40. a5 {[%clk 0:00:07]} 40... bxa5 {[%clk 0:00:11.3]} 41. bxa5 {[%clk
0:00:07.9]} 41... Rc5 {[%clk 0:00:11.6]} 42. Ra3 {[%clk 0:00:06.5]} 42... Rxe5
{[%clk 0:00:10.8]} 43. Bxa6 {[%clk 0:00:07.1]} 43... Nh4 {[%clk 0:00:08.2]} 44.
f4 {[%clk 0:00:07]} 44... Rc5 {[%clk 0:00:06.5]} 45. Be2 {[%clk 0:00:06.3]}
45... Nf5 {[%clk 0:00:06.3]} 46. a6 {[%clk 0:00:06]} 46... Rc8 {[%clk
0:00:06.5]} 47. a7 {[%clk 0:00:06.5]} 47... Ra8 {[%clk 0:00:06.9]} 48. Bf3
{[%clk 0:00:07.1]} 1-0

[Event "*** Titled Tuesday Blitz"]
[Site "Chess.com"]
[Date "2020.05.05"]
[Round "2"]
[White "Indianlad"]
[Black "Joshukid"]
[Result "1-0"]
[WhiteElo "2914"]
[BlackElo "2566"]
[TimeControl "180+1"]
[EndTime "10:19:22 PDT"]
[Termination "Indianlad won on time"]

1. d4 {[%clk 0:03:00.9]} 1... Nf6 {[%clk 0:02:50.3]} 2. c4 {[%clk 0:03:00.5]}
2... e6 {[%clk 0:02:50.7]} 3. Nf3 {[%clk 0:03:00.3]} 3... d5 {[%clk 0:02:47.5]}
4. g3 {[%clk 0:03:00.5]} 4... Be7 {[%clk 0:02:45.3]} 5. Bg2 {[%clk 0:03:00.8]}
5... O-O {[%clk 0:02:45.7]} 6. O-O {[%clk 0:03:01]} 6... dxc4 {[%clk 0:02:46.5]}
7. Qc2 {[%clk 0:03:00.8]} 7... a6 {[%clk 0:02:44.5]} 8. a4 {[%clk 0:03:01.4]}
8... Bd7 {[%clk 0:02:44.7]} 9. Qxc4 {[%clk 0:03:01.8]} 9... Bc6 {[%clk 0:02:45]}
10. Bf4 {[%clk 0:03:02.5]} 10... Bd6 {[%clk 0:02:40.5]} 11. Qc1 {[%clk
0:03:02.4]} 11... Nbd7 {[%clk 0:02:37.5]} 12. Nc3 {[%clk 0:03:02.2]} 12... Ne4
{[%clk 0:02:23.5]} 13. Re1 {[%clk 0:02:59.8]} 13... Nxc3 {[%clk 0:02:21.4]} 14.
bxc3 {[%clk 0:02:58.3]} 14... Nf6 {[%clk 0:02:21.5]} 15. Bg5 {[%clk 0:02:55.1]}
15... h6 {[%clk 0:02:15.9]} 16. Bxf6 {[%clk 0:02:55]} 16... Qxf6 {[%clk
0:02:16.8]} 17. e4 {[%clk 0:02:55]} 17... e5 {[%clk 0:02:17.1]} 18. c4 {[%clk
0:02:42.1]} 18... b6 {[%clk 0:02:07.7]} 19. c5 {[%clk 0:02:33.1]} 19... bxc5
{[%clk 0:02:03.5]} 20. dxc5 {[%clk 0:02:34]} 20... Be7 {[%clk 0:02:03.7]} 21.
Qc3 {[%clk 0:02:34.8]} 21... Rfe8 {[%clk 0:01:46.7]} 22. Qxe5 {[%clk 0:02:30.4]}
22... Bd8 {[%clk 0:01:13.1]} 23. Qxf6 {[%clk 0:02:18]} 23... Bxf6 {[%clk
0:01:14]} 24. e5 {[%clk 0:02:18.8]} 24... Be7 {[%clk 0:01:14.5]} 25. e6 {[%clk
0:02:09.9]} 25... fxe6 {[%clk 0:01:02]} 26. Rxe6 {[%clk 0:02:08.9]} 26... Bd5
{[%clk 0:01:02.3]} 27. Re5 {[%clk 0:01:58.3]} 27... Bxf3 {[%clk 0:00:42.5]} 28.
Bxf3 {[%clk 0:01:56.8]} 28... Bf6 {[%clk 0:00:43]} 29. Rxe8+ {[%clk 0:01:54.1]}
29... Rxe8 {[%clk 0:00:43]} 30. Ra2 {[%clk 0:01:53.6]} 30... a5 {[%clk
0:00:42.3]} 31. Be2 {[%clk 0:01:49.8]} 31... Re4 {[%clk 0:00:29.6]} 32. c6
{[%clk 0:01:47.5]} 32... Kf8 {[%clk 0:00:18.7]} 33. Bb5 {[%clk 0:01:47.4]} 33...
Ke7 {[%clk 0:00:17.6]} 34. Kg2 {[%clk 0:01:47.5]} 34... Kd6 {[%clk 0:00:16.7]}
35. h4 {[%clk 0:01:46]} 35... Rd4 {[%clk 0:00:14.8]} 36. Re2 {[%clk 0:01:45.5]}
36... Kc5 {[%clk 0:00:15.2]} 37. f4 {[%clk 0:01:41.4]} 37... Rb4 {[%clk
0:00:14.8]} 38. Kh3 {[%clk 0:01:41.7]} 38... Rb3 {[%clk 0:00:13.2]} 39. h5
{[%clk 0:01:39.1]} 39... Bd4 {[%clk 0:00:12.6]} 40. Re7 {[%clk 0:01:31.2]} 40...
Kb6 {[%clk 0:00:12.7]} 41. Kg2 {[%clk 0:01:31.1]} 41... Rb2+ {[%clk 0:00:12.9]}
42. Kh3 {[%clk 0:01:27.2]} 42... Rb3 {[%clk 0:00:12.8]} 43. Re2 {[%clk
0:01:27.3]} 43... Rb2 {[%clk 0:00:12.7]} 44. Re4 {[%clk 0:01:27.6]} 44... Kc5
{[%clk 0:00:13]} 45. Kg4 {[%clk 0:01:10.5]} 45... Rb3 {[%clk 0:00:13]} 46. Re2
{[%clk 0:01:06.1]} 46... Re3 {[%clk 0:00:11.9]} 47. Rg2 {[%clk 0:00:57.4]} 47...
Bc3 {[%clk 0:00:11.3]} 48. Kf5 {[%clk 0:00:57.1]} 48... Kd6 {[%clk 0:00:10.2]}
49. g4 {[%clk 0:00:55.8]} 49... Ke7 {[%clk 0:00:10.8]} 50. g5 {[%clk 0:00:55]}
50... hxg5 {[%clk 0:00:08]} 51. fxg5 {[%clk 0:00:55.9]} 51... Kf7 {[%clk
0:00:06.9]} 52. Bc4+ {[%clk 0:00:55.7]} 52... Kf8 {[%clk 0:00:07.8]} 53. Re2
{[%clk 0:00:47.7]} 53... Rxe2 {[%clk 0:00:07.6]} 54. Bxe2 {[%clk 0:00:48.6]}
54... Kg8 {[%clk 0:00:06.3]} 55. Bc4+ {[%clk 0:00:48.2]} 55... Kh8 {[%clk
0:00:06.5]} 56. Ke6 {[%clk 0:00:47.7]} 56... Bd4 {[%clk 0:00:04.7]} 57. Kd7
{[%clk 0:00:47.7]} 57... Bb6 {[%clk 0:00:04.2]} 58. g6 {[%clk 0:00:46.2]} 1-0

[Event "*** Titled Tuesday Blitz"]
[Site "Chess.com"]
[Date "2020.05.05"]
[Round "2"]
[White "MPGM"]
[Black "kleinebeer98"]
[Result "1-0"]
[WhiteElo "2493"]
[BlackElo "2681"]
[TimeControl "180+1"]
[EndTime "10:19:23 PDT"]
[Termination "MPGM won on time"]

1. d4 {[%clk 0:03:00.9]} 1... Nf6 {[%clk 0:02:58.7]} 2. Bg5 {[%clk 0:02:59.6]}
2... d5 {[%clk 0:02:57.5]} 3. e3 {[%clk 0:02:58.5]} 3... c5 {[%clk 0:02:57.4]}
4. Nd2 {[%clk 0:02:57.6]} 4... Nc6 {[%clk 0:02:55.3]} 5. c3 {[%clk 0:02:57]}
5... e5 {[%clk 0:02:42.5]} 6. dxe5 {[%clk 0:02:54]} 6... Nxe5 {[%clk 0:02:43.4]}
7. Bb5+ {[%clk 0:02:53.2]} 7... Nc6 {[%clk 0:02:33.2]} 8. Ngf3 {[%clk
0:02:44.6]} 8... h6 {[%clk 0:02:24.5]} 9. Bxf6 {[%clk 0:02:43.5]} 9... Qxf6
{[%clk 0:02:25.4]} 10. O-O {[%clk 0:02:42]} 10... Bf5 {[%clk 0:02:02.3]} 11. Re1
{[%clk 0:02:21]} 11... O-O-O {[%clk 0:01:50.7]} 12. Qa4 {[%clk 0:02:17]} 12...
Rd6 {[%clk 0:01:30.8]} 13. e4 {[%clk 0:02:13.3]} 13... dxe4 {[%clk 0:01:25.9]}
14. Nxe4 {[%clk 0:02:12.4]} 14... Bxe4 {[%clk 0:01:24.8]} 15. Rxe4 {[%clk
0:02:08.1]} 15... a6 {[%clk 0:01:09.8]} 16. Bxc6 {[%clk 0:01:48.4]} 16... Rxc6
{[%clk 0:01:10.7]} 17. Ne5 {[%clk 0:01:41.1]} 17... Re6 {[%clk 0:00:54]} 18.
Qd7+ {[%clk 0:01:29.7]} 18... Kb8 {[%clk 0:00:53.7]} 19. Qd5 {[%clk 0:01:28.4]}
19... Ka7 {[%clk 0:00:44.3]} 20. Rae1 {[%clk 0:01:16.1]} 20... Bd6 {[%clk
0:00:33.5]} 21. Nc4 {[%clk 0:01:09.7]} 21... Rxe4 {[%clk 0:00:26]} 22. Rxe4
{[%clk 0:01:10.6]} 22... Rd8 {[%clk 0:00:24.5]} 23. g3 {[%clk 0:01:04.4]} 23...
Be7 {[%clk 0:00:08.7]} 24. Qe5 {[%clk 0:01:04.4]} 24... Qxe5 {[%clk 0:00:08.3]}
25. Rxe5 {[%clk 0:01:04]} 25... Bf8 {[%clk 0:00:08.7]} 26. Kf1 {[%clk
0:00:50.4]} 26... b5 {[%clk 0:00:07.3]} 27. Ne3 {[%clk 0:00:49.9]} 27... Rd2
{[%clk 0:00:07.3]} 28. Re8 {[%clk 0:00:39.5]} 28... Bd6 {[%clk 0:00:07.5]} 29.
Rd8 {[%clk 0:00:38.3]} 29... g6 {[%clk 0:00:05.9]} 30. Rd7+ {[%clk 0:00:35.6]}
30... Kb6 {[%clk 0:00:06.3]} 31. Rxf7 {[%clk 0:00:35.6]} 31... Rxb2 {[%clk
0:00:06.3]} 32. Rf6 {[%clk 0:00:34.6]} 32... Kc7 {[%clk 0:00:06.6]} 33. a4
{[%clk 0:00:25]} 33... Rb1+ {[%clk 0:00:04.8]} 34. Ke2 {[%clk 0:00:24.7]} 34...
bxa4 {[%clk 0:00:05.7]} 35. Nc4 {[%clk 0:00:23.7]} 35... Be7 {[%clk 0:00:02.8]}
36. Rxa6 {[%clk 0:00:23.4]} 36... Rb3 {[%clk 0:00:03.7]} 37. Kd3 {[%clk
0:00:20.3]} 37... Rb1 {[%clk 0:00:02.5]} 38. Ra7+ {[%clk 0:00:19.1]} 38... Kd8
{[%clk 0:00:02.4]} 39. Ne5 {[%clk 0:00:19.2]} 39... Bf6 {[%clk 0:00:02]} 40.
Nc6+ {[%clk 0:00:17.4]} 40... Ke8 {[%clk 0:00:02.5]} 41. Rxa4 {[%clk 0:00:16.3]}
41... Rc1 {[%clk 0:00:01.4]} 42. Re4+ {[%clk 0:00:16.1]} 42... Kf7 {[%clk
0:00:01.3]} 43. Ne5+ {[%clk 0:00:16.3]} 43... Kg7 {[%clk 0:00:01.8]} 44. f4
{[%clk 0:00:14.6]} 44... Rd1+ {[%clk 0:00:02]} 45. Kc4 {[%clk 0:00:13.9]} 45...
Rd2 {[%clk 0:00:02.4]} 46. h4 {[%clk 0:00:13.1]} 46... Rg2 {[%clk 0:00:02.8]}
47. Re3 {[%clk 0:00:12.6]} 47... g5 {[%clk 0:00:02.4]} 48. hxg5 {[%clk
0:00:09.9]} 48... hxg5 {[%clk 0:00:03.3]} 49. Kxc5 {[%clk 0:00:10.1]} 49... gxf4
{[%clk 0:00:02.6]} 50. gxf4 {[%clk 0:00:11]} 50... Rf2 {[%clk 0:00:02.8]} 51.
Ng4 {[%clk 0:00:08.8]} 51... Bxc3 {[%clk 0:00:01.6]} 52. Nxf2 {[%clk 0:00:07.2]}
52... Bd2 {[%clk 0:00:01.2]} 53. Rg3+ {[%clk 0:00:06.7]} 53... Kf7 {[%clk
0:00:01.5]} 54. Nd3 {[%clk 0:00:05.8]} 1-0